[Event "*** Titled Tuesday Blitz"]
[Site "Chess.com"]
[Date "2021.02.02"]
[Round "9"]
[White "mirochka"]
[Black "GMJustin"]
[Result "1-0"]
[WhiteElo "2226"]
[BlackElo "2293"]
[TimeControl "180+1"]
[EndTime "11:45:38 PST"]
[Termination "mirochka won on time"]

1. e4 {[%clk 0:03:00.9]} 1... e5 {[%clk 0:02:51.9]} 2. Nf3 {[%clk 0:02:59.7]}
2... Nc6 {[%clk 0:02:51.1]} 3. d4 {[%clk 0:02:59.4]} 3... exd4 {[%clk
0:02:50.5]} 4. c3 {[%clk 0:02:59.9]} 4... dxc3 {[%clk 0:02:42]} 5. Nxc3 {[%clk
0:03:00.8]} 5... Bb4 {[%clk 0:02:40.8]} 6. Bc4 {[%clk 0:02:59.7]} 6... d6 {[%clk
0:02:36.2]} 7. O-O {[%clk 0:02:58.4]} 7... Bxc3 {[%clk 0:02:35.1]} 8. bxc3
{[%clk 0:02:57.5]} 8... Nf6 {[%clk 0:02:33.4]} 9. e5 {[%clk 0:02:56]} 9... dxe5
{[%clk 0:02:00.9]} 10. Ng5 {[%clk 0:02:54.5]} 10... Qxd1 {[%clk 0:01:20.1]} 11.
Bxf7+ {[%clk 0:02:27.8]} 11... Kf8 {[%clk 0:01:10.1]} 12. Rxd1 {[%clk
0:02:28.6]} 12... Bg4 {[%clk 0:00:55.1]} 13. Ba3+ {[%clk 0:02:20.9]} 13... Ne7
{[%clk 0:00:53.1]} 14. f3 {[%clk 0:02:11.8]} 14... h6 {[%clk 0:00:38.6]} 15.
fxg4 {[%clk 0:01:34.3]} 15... hxg5 {[%clk 0:00:38.5]} 16. Be6 {[%clk 0:01:26.9]}
16... Ke8 {[%clk 0:00:38.1]} 17. Rab1 {[%clk 0:01:10.4]} 17... b6 {[%clk
0:00:35.5]} 18. Bc1 {[%clk 0:00:56.9]} 18... Ne4 {[%clk 0:00:19.9]} 19. Bd7+
{[%clk 0:00:50.6]} 19... Kf7 {[%clk 0:00:18.3]} 20. Rf1+ {[%clk 0:00:50.1]}
20... Kg6 {[%clk 0:00:16.1]} 21. Ba3 {[%clk 0:00:39.8]} 21... c5 {[%clk
0:00:13.6]} 22. Rbe1 {[%clk 0:00:39.4]} 22... Nxc3 {[%clk 0:00:07.5]} 23. Rxe5
{[%clk 0:00:34.3]} 23... Ncd5 {[%clk 0:00:04.1]} 24. Bc1 {[%clk 0:00:32.5]}
24... Rhf8 {[%clk 0:00:01.7]} 25. Rxg5+ {[%clk 0:00:31.3]} 25... Kh7 {[%clk
0:00:02]} 26. Rh5+ {[%clk 0:00:30.8]} 26... Kg6 {[%clk 0:00:02.3]} 27. Rg5+
{[%clk 0:00:29.5]} 27... Kh7 {[%clk 0:00:02.2]} 28. Bb2 {[%clk 0:00:24.7]} 1-0

[Event "*** Titled Tuesday Blitz"]
[Site "Chess.com"]
[Date "2021.02.02"]
[Round "9"]
[White "Boninknights"]
[Black "Goryachkina"]
[Result "0-1"]
[WhiteElo "2481"]
[BlackElo "2655"]
[TimeControl "180+1"]
[EndTime "11:45:40 PST"]
[Termination "Goryachkina won by resignation"]

1. d4 {[%clk 0:02:59.2]} 1... Nf6 {[%clk 0:02:59.7]} 2. Nf3 {[%clk 0:02:58.8]}
2... d5 {[%clk 0:02:59.5]} 3. c4 {[%clk 0:02:58.3]} 3... e6 {[%clk 0:02:59.7]}
4. g3 {[%clk 0:02:57.4]} 4... Bb4+ {[%clk 0:02:55.7]} 5. Bd2 {[%clk 0:02:56.2]}
5... Be7 {[%clk 0:02:51.8]} 6. Qc2 {[%clk 0:02:54.7]} 6... O-O {[%clk
0:02:51.4]} 7. Bg2 {[%clk 0:02:54.4]} 7... Nbd7 {[%clk 0:02:51.1]} 8. O-O {[%clk
0:02:53.3]} 8... c6 {[%clk 0:02:50.4]} 9. Bg5 {[%clk 0:02:52]} 9... h6 {[%clk
0:02:48.6]} 10. Bxf6 {[%clk 0:02:51.7]} 10... Bxf6 {[%clk 0:02:47.5]} 11. Nbd2
{[%clk 0:02:51.4]} 11... b6 {[%clk 0:02:43.5]} 12. e4 {[%clk 0:02:50]} 12... Bb7
{[%clk 0:02:41.6]} 13. Rac1 {[%clk 0:02:45]} 13... Rc8 {[%clk 0:02:40.9]} 14.
Rfd1 {[%clk 0:02:43.2]} 14... Be7 {[%clk 0:02:27.5]} 15. Nb1 {[%clk 0:02:33.2]}
15... dxc4 {[%clk 0:02:25.4]} 16. Qxc4 {[%clk 0:02:31]} 16... b5 {[%clk
0:02:25.2]} 17. Qb3 {[%clk 0:02:22.9]} 17... Qb6 {[%clk 0:02:23.9]} 18. Nc3
{[%clk 0:02:13.9]} 18... Rfd8 {[%clk 0:02:20]} 19. a4 {[%clk 0:02:11.2]} 19...
a6 {[%clk 0:02:18.9]} 20. e5 {[%clk 0:02:04.7]} 20... b4 {[%clk 0:02:10.1]} 21.
Ne4 {[%clk 0:02:00.7]} 21... c5 {[%clk 0:02:09.8]} 22. dxc5 {[%clk 0:01:57.4]}
22... Nxc5 {[%clk 0:02:09.2]} 23. Nxc5 {[%clk 0:01:56.1]} 23... Bxc5 {[%clk
0:02:07.6]} 24. Rxd8+ {[%clk 0:01:49.8]} 24... Rxd8 {[%clk 0:02:02.8]} 25. Qc2
{[%clk 0:01:48.1]} 25... Rc8 {[%clk 0:01:58.1]} 26. Rf1 {[%clk 0:01:31.6]} 26...
b3 {[%clk 0:01:50.4]} 27. Qe2 {[%clk 0:01:29.7]} 27... Bxf3 {[%clk 0:01:42.9]}
28. Qxf3 {[%clk 0:01:23.7]} 28... Bd4 {[%clk 0:01:40.3]} 29. Qb7 {[%clk
0:01:20.7]} 29... Bxf2+ {[%clk 0:01:04]} 30. Kh1 {[%clk 0:01:11.1]} 30... Qxb7
{[%clk 0:01:03.8]} 31. Bxb7 {[%clk 0:01:09]} 31... Rc2 {[%clk 0:01:04]} 32. Bxa6
{[%clk 0:01:05.1]} 32... Bd4 {[%clk 0:01:00.3]} 33. Bb5 {[%clk 0:00:51.8]} 33...
Bxe5 {[%clk 0:00:45.5]} 34. Be8 {[%clk 0:00:48.3]} 34... f5 {[%clk 0:00:39.5]}
35. Bg6 {[%clk 0:00:46.5]} 35... Kf8 {[%clk 0:00:33]} 36. Rd1 {[%clk 0:00:41.2]}
36... Ke7 {[%clk 0:00:27.4]} 37. a5 {[%clk 0:00:33.5]} 37... Rxb2 {[%clk
0:00:26]} 38. Rd3 {[%clk 0:00:33.4]} 38... Rb1+ {[%clk 0:00:24.7]} 39. Kg2
{[%clk 0:00:32.2]} 39... b2 {[%clk 0:00:24.6]} 0-1

[Event "*** Titled Tuesday Blitz"]
[Site "Chess.com"]
[Date "2021.02.02"]
[Round "9"]
[White "SharapovEvgeny"]
[Black "Loy_Konstantin"]
[Result "1/2-1/2"]
[WhiteElo "2457"]
[BlackElo "2387"]
[TimeControl "180+1"]
[EndTime "11:45:41 PST"]
[Termination "Game drawn - insufficient material"]

1. e4 {[%clk 0:02:59.6]} 1... c5 {[%clk 0:02:58.3]} 2. Nf3 {[%clk 0:02:59.1]}
2... d6 {[%clk 0:02:58.6]} 3. d4 {[%clk 0:02:58.9]} 3... cxd4 {[%clk 0:02:59.5]}
4. Nxd4 {[%clk 0:02:59.1]} 4... Nf6 {[%clk 0:02:59.6]} 5. f3 {[%clk 0:02:58.9]}
5... Nc6 {[%clk 0:02:59.5]} 6. c4 {[%clk 0:02:57.5]} 6... Nxd4 {[%clk
0:02:59.5]} 7. Qxd4 {[%clk 0:02:56.9]} 7... g6 {[%clk 0:03:00.1]} 8. Be3 {[%clk
0:02:56.3]} 8... Bg7 {[%clk 0:03:00.4]} 9. Nc3 {[%clk 0:02:56.1]} 9... O-O
{[%clk 0:03:01]} 10. Qd2 {[%clk 0:02:55.9]} 10... Be6 {[%clk 0:03:01.6]} 11. Be2
{[%clk 0:02:55.6]} 11... Qa5 {[%clk 0:03:00.6]} 12. Nd5 {[%clk 0:02:49.7]} 12...
Qxd2+ {[%clk 0:02:59.7]} 13. Kxd2 {[%clk 0:02:49.4]} 13... Nxd5 {[%clk
0:02:59.7]} 14. exd5 {[%clk 0:02:41]} 14... Bd7 {[%clk 0:02:59.7]} 15. Rab1
{[%clk 0:02:38.9]} 15... a6 {[%clk 0:02:31.4]} 16. b3 {[%clk 0:02:37.7]} 16...
b5 {[%clk 0:02:27.7]} 17. Rbc1 {[%clk 0:02:31.7]} 17... bxc4 {[%clk 0:02:24.1]}
18. Rxc4 {[%clk 0:02:27.1]} 18... Rfc8 {[%clk 0:02:11.7]} 19. Rhc1 {[%clk
0:02:25]} 19... Kf8 {[%clk 0:01:52.8]} 20. Rxc8+ {[%clk 0:02:21.9]} 20... Rxc8
{[%clk 0:01:53.7]} 21. Rxc8+ {[%clk 0:02:17.4]} 21... Bxc8 {[%clk 0:01:53.3]}
22. a4 {[%clk 0:02:08.2]} 22... e6 {[%clk 0:01:32.4]} 23. Bc4 {[%clk 0:02:03.7]}
23... exd5 {[%clk 0:01:21.1]} 24. Bxd5 {[%clk 0:02:03.2]} 24... Be6 {[%clk
0:01:21.7]} 25. Bxe6 {[%clk 0:01:48]} 25... fxe6 {[%clk 0:01:22.6]} 26. b4
{[%clk 0:01:45.1]} 26... Ke7 {[%clk 0:01:17.9]} 27. b5 {[%clk 0:01:44.4]} 27...
axb5 {[%clk 0:01:18.2]} 28. axb5 {[%clk 0:01:37.2]} 28... d5 {[%clk 0:01:16.4]}
29. Bc5+ {[%clk 0:01:32]} 29... Kd7 {[%clk 0:01:16.5]} 30. Kc2 {[%clk
0:01:27.5]} 30... Be5 {[%clk 0:01:08.6]} 31. h3 {[%clk 0:01:26.8]} 31... Kc7
{[%clk 0:00:53.4]} 32. Kb3 {[%clk 0:01:26.1]} 32... Kb7 {[%clk 0:00:51.8]} 33.
Kb4 {[%clk 0:01:24.8]} 33... Kc7 {[%clk 0:00:49.9]} 34. Be7 {[%clk 0:01:13.4]}
34... Bd6+ {[%clk 0:00:37.5]} 35. Bxd6+ {[%clk 0:01:12.8]} 35... Kxd6 {[%clk
0:00:38.4]} 36. f4 {[%clk 0:01:09.5]} 36... h5 {[%clk 0:00:33.2]} 37. g3 {[%clk
0:01:06.2]} 37... Kc7 {[%clk 0:00:30.3]} 38. Kc5 {[%clk 0:01:05.6]} 38... Kb7
{[%clk 0:00:30.6]} 39. g4 {[%clk 0:00:53.5]} 39... hxg4 {[%clk 0:00:29.9]} 40.
hxg4 {[%clk 0:00:53.5]} 40... Kc7 {[%clk 0:00:27]} 41. f5 {[%clk 0:00:40.6]}
41... exf5 {[%clk 0:00:25.9]} 42. gxf5 {[%clk 0:00:40.8]} 42... gxf5 {[%clk
0:00:25]} 43. Kxd5 {[%clk 0:00:41]} 43... Kb6 {[%clk 0:00:25.2]} 44. Ke5 {[%clk
0:00:41.4]} 44... f4 {[%clk 0:00:25.7]} 45. Kxf4 {[%clk 0:00:41.4]} 45... Kxb5
{[%clk 0:00:26.2]} 1/2-1/2

[Event "*** Titled Tuesday Blitz"]
[Site "Chess.com"]
[Date "2021.02.02"]
[Round "9"]
[White "karinachess1"]
[Black "TregubovP"]
[Result "0-1"]
[WhiteElo "2474"]
[BlackElo "2599"]
[TimeControl "180+1"]
[EndTime "11:45:45 PST"]
[Termination "TregubovP won on time"]

1. c4 {[%clk 0:03:00.9]} 1... c5 {[%clk 0:02:14.6]} 2. Nf3 {[%clk 0:03:00.3]}
2... Nc6 {[%clk 0:02:15.1]} 3. d4 {[%clk 0:02:57.2]} 3... cxd4 {[%clk
0:02:14.9]} 4. Nxd4 {[%clk 0:02:58.1]} 4... Nf6 {[%clk 0:02:15.6]} 5. Nc3 {[%clk
0:02:54]} 5... Qb6 {[%clk 0:02:16.1]} 6. Nb3 {[%clk 0:02:40.8]} 6... e6 {[%clk
0:02:16.5]} 7. a3 {[%clk 0:02:26.3]} 7... d5 {[%clk 0:02:14.6]} 8. e3 {[%clk
0:02:23]} 8... Be7 {[%clk 0:02:12.5]} 9. Be2 {[%clk 0:02:13.9]} 9... O-O {[%clk
0:02:12.8]} 10. O-O {[%clk 0:02:11.2]} 10... dxc4 {[%clk 0:02:09.7]} 11. Bxc4
{[%clk 0:02:09.8]} 11... Bd7 {[%clk 0:02:05]} 12. Na4 {[%clk 0:01:21.5]} 12...
Qc7 {[%clk 0:02:02.2]} 13. Nac5 {[%clk 0:01:21.9]} 13... Rfd8 {[%clk 0:01:54.1]}
14. Nxd7 {[%clk 0:00:46.9]} 14... Rxd7 {[%clk 0:01:54]} 15. Bd2 {[%clk
0:00:44.4]} 15... Ne4 {[%clk 0:01:45.7]} 16. Qe2 {[%clk 0:00:40.9]} 16... a6
{[%clk 0:01:32.3]} 17. Rac1 {[%clk 0:00:38.9]} 17... Rad8 {[%clk 0:01:30.8]} 18.
Rfd1 {[%clk 0:00:37]} 18... Nxd2 {[%clk 0:01:23.6]} 19. Rxd2 {[%clk 0:00:34.8]}
19... Rxd2 {[%clk 0:01:23.1]} 20. Nxd2 {[%clk 0:00:35]} 20... Ne5 {[%clk
0:01:09.4]} 21. Nb3 {[%clk 0:00:33.5]} 21... Rc8 {[%clk 0:00:55]} 22. f4 {[%clk
0:00:01.5]} 22... Nxc4 {[%clk 0:00:51.6]} 23. Nd2 {[%clk 0:00:02.2]} 23... b5
{[%clk 0:00:44]} 24. b3 {[%clk 0:00:02.6]} 24... Bxa3 {[%clk 0:00:42.8]} 25. Rc2
{[%clk 0:00:03.1]} 25... Bb4 {[%clk 0:00:31.6]} 26. bxc4 {[%clk 0:00:03.6]}
26... Bxd2 {[%clk 0:00:31.8]} 27. Qxd2 {[%clk 0:00:02.2]} 27... bxc4 {[%clk
0:00:32.1]} 28. Qc3 {[%clk 0:00:02.6]} 28... h6 {[%clk 0:00:31.3]} 29. h3 {[%clk
0:00:02.4]} 29... Qc5 {[%clk 0:00:31.4]} 30. Rd2 {[%clk 0:00:02.5]} 30... a5
{[%clk 0:00:28.7]} 0-1

[Event "*** Titled Tuesday Blitz"]
[Site "Chess.com"]
[Date "2021.02.02"]
[Round "9"]
[White "anon481216"]
[Black "CSB7"]
[Result "1/2-1/2"]
[WhiteElo "2469"]
[BlackElo "2584"]
[TimeControl "180+1"]
[EndTime "11:45:45 PST"]
[Termination "Game drawn by agreement"]

1. d4 {[%clk 0:03:00.9]} 1... d5 {[%clk 0:02:56.8]} 2. c4 {[%clk 0:03:00.4]}
2... e6 {[%clk 0:02:57]} 3. Nf3 {[%clk 0:03:00]} 3... Nf6 {[%clk 0:02:56.7]} 4.
g3 {[%clk 0:02:59.8]} 4... Bb4+ {[%clk 0:02:57.2]} 5. Bd2 {[%clk 0:02:59.4]}
5... Bd6 {[%clk 0:02:57.7]} 6. Bg2 {[%clk 0:02:53.6]} 6... O-O {[%clk
0:02:56.9]} 7. c5 {[%clk 0:02:52.5]} 7... Be7 {[%clk 0:02:56.1]} 8. O-O {[%clk
0:02:53]} 8... b6 {[%clk 0:02:51.1]} 9. Qc2 {[%clk 0:02:43.2]} 9... a5 {[%clk
0:02:42.6]} 10. cxb6 {[%clk 0:02:36.9]} 10... cxb6 {[%clk 0:02:42.3]} 11. Rc1
{[%clk 0:02:36.9]} 11... Ba6 {[%clk 0:02:05.8]} 12. Bf4 {[%clk 0:02:35.9]} 12...
Nbd7 {[%clk 0:01:50.4]} 13. a4 {[%clk 0:02:03]} 13... b5 {[%clk 0:01:14.6]} 14.
axb5 {[%clk 0:02:01.9]} 14... Bxb5 {[%clk 0:01:15.5]} 15. Nc3 {[%clk 0:02:01.7]}
15... Ba6 {[%clk 0:01:11.1]} 16. Bf1 {[%clk 0:01:36.4]} 16... Qb6 {[%clk
0:01:02.7]} 17. Qa4 {[%clk 0:01:28.2]} 17... Qxb2 {[%clk 0:00:34.9]} 18. Rab1
{[%clk 0:01:20.9]} 18... Qa3 {[%clk 0:00:34.8]} 19. Ne5 {[%clk 0:01:00.6]} 19...
Qxa4 {[%clk 0:00:22.4]} 20. Nxa4 {[%clk 0:01:00.4]} 20... Nxe5 {[%clk
0:00:22.3]} 21. dxe5 {[%clk 0:00:59]} 21... Nd7 {[%clk 0:00:07.7]} 22. Rc7
{[%clk 0:00:57.8]} 22... Rfd8 {[%clk 0:00:07]} 23. h4 {[%clk 0:00:45.1]} 23...
h6 {[%clk 0:00:05.1]} 24. h5 {[%clk 0:00:43.1]} 24... Bb4 {[%clk 0:00:05.2]} 25.
e3 {[%clk 0:00:37.2]} 25... Bxf1 {[%clk 0:00:04.3]} 26. Kxf1 {[%clk 0:00:37.5]}
26... Rac8 {[%clk 0:00:04.9]} 27. Rbc1 {[%clk 0:00:37.4]} 27... Rxc7 {[%clk
0:00:03.4]} 28. Rxc7 {[%clk 0:00:37.1]} 28... Kf8 {[%clk 0:00:03.9]} 29. Ra7
{[%clk 0:00:35.5]} 29... Ke8 {[%clk 0:00:03.8]} 30. g4 {[%clk 0:00:32.3]} 30...
Nc5 {[%clk 0:00:03.3]} 31. Nxc5 {[%clk 0:00:31.5]} 31... Bxc5 {[%clk 0:00:04.2]}
32. Rxa5 {[%clk 0:00:31.5]} 32... Be7 {[%clk 0:00:04.9]} 1/2-1/2

[Event "*** Titled Tuesday Blitz"]
[Site "Chess.com"]
[Date "2021.02.02"]
[Round "9"]
[White "DFeco"]
[Black "SHIVACalypso"]
[Result "1-0"]
[WhiteElo "2264"]
[BlackElo "2367"]
[TimeControl "180+1"]
[EndTime "11:45:47 PST"]
[Termination "DFeco won by checkmate"]

1. c4 {[%clk 0:03:00.9]} 1... Nf6 {[%clk 0:02:57.6]} 2. g3 {[%clk 0:03:00.4]}
2... e6 {[%clk 0:02:57.6]} 3. Bg2 {[%clk 0:02:59.9]} 3... d5 {[%clk 0:02:55.7]}
4. Nf3 {[%clk 0:02:59.7]} 4... Be7 {[%clk 0:02:52.6]} 5. O-O {[%clk 0:02:58.8]}
5... O-O {[%clk 0:02:50.7]} 6. d4 {[%clk 0:02:55.4]} 6... dxc4 {[%clk
0:02:50.3]} 7. Ne5 {[%clk 0:02:54.6]} 7... Nc6 {[%clk 0:02:49.2]} 8. Nxc6 {[%clk
0:02:46]} 8... bxc6 {[%clk 0:02:50.1]} 9. Na3 {[%clk 0:02:44.1]} 9... Rb8 {[%clk
0:02:40.2]} 10. Nxc4 {[%clk 0:02:42.6]} 10... c5 {[%clk 0:02:38.9]} 11. Na5
{[%clk 0:02:35.5]} 11... Bd7 {[%clk 0:02:27.9]} 12. dxc5 {[%clk 0:02:29.2]}
12... Bxc5 {[%clk 0:02:07.4]} 13. Nb7 {[%clk 0:02:28.8]} 13... Qe7 {[%clk
0:02:06.8]} 14. Nxc5 {[%clk 0:02:17.4]} 14... Qxc5 {[%clk 0:02:07.7]} 15. Be3
{[%clk 0:02:15.1]} 15... Qa5 {[%clk 0:01:58.6]} 16. b3 {[%clk 0:02:13.1]} 16...
Bb5 {[%clk 0:01:53.7]} 17. Qc2 {[%clk 0:02:10.4]} 17... Nd5 {[%clk 0:01:49.6]}
18. Bxd5 {[%clk 0:02:06]} 18... exd5 {[%clk 0:01:48.1]} 19. Rfd1 {[%clk
0:02:04.8]} 19... Rfd8 {[%clk 0:01:19.2]} 20. Bf4 {[%clk 0:02:00.4]} 20... Rbc8
{[%clk 0:01:14.6]} 21. Rac1 {[%clk 0:01:58.2]} 21... c5 {[%clk 0:01:11.3]} 22.
e3 {[%clk 0:01:54.1]} 22... h6 {[%clk 0:00:51.1]} 23. a4 {[%clk 0:01:51.6]}
23... Ba6 {[%clk 0:00:49.7]} 24. Qf5 {[%clk 0:01:36.7]} 24... c4 {[%clk
0:00:33.7]} 25. bxc4 {[%clk 0:01:29.5]} 25... Bxc4 {[%clk 0:00:33.3]} 26. Be5
{[%clk 0:01:21.1]} 26... Rc6 {[%clk 0:00:20]} 27. Bb2 {[%clk 0:00:44.4]} 27...
Qxa4 {[%clk 0:00:16.3]} 28. e4 {[%clk 0:00:40.2]} 28... Qb3 {[%clk 0:00:11]} 29.
exd5 {[%clk 0:00:32.8]} 29... Rxd5 {[%clk 0:00:05.4]} 30. Rxd5 {[%clk
0:00:27.3]} 30... Qxb2 {[%clk 0:00:02.5]} 31. Rd8# {[%clk 0:00:24.7]} 1-0

[Event "*** Titled Tuesday Blitz"]
[Site "Chess.com"]
[Date "2021.02.02"]
[Round "9"]
[White "PawnEatingZombie"]
[Black "Unknown_IM"]
[Result "0-1"]
[WhiteElo "2238"]
[BlackElo "2380"]
[TimeControl "180+1"]
[EndTime "11:45:49 PST"]
[Termination "Unknown_IM won on time"]

1. d4 {[%clk 0:03:00.9]} 1... d5 {[%clk 0:02:59.6]} 2. c4 {[%clk 0:03:00.2]}
2... e6 {[%clk 0:02:59.7]} 3. Nc3 {[%clk 0:02:59.3]} 3... c6 {[%clk 0:02:59.1]}
4. e3 {[%clk 0:02:59]} 4... Nf6 {[%clk 0:02:58.8]} 5. Nf3 {[%clk 0:02:59]} 5...
Nbd7 {[%clk 0:02:58.8]} 6. Qc2 {[%clk 0:02:59.4]} 6... Bd6 {[%clk 0:02:57.7]} 7.
Bd3 {[%clk 0:02:59.1]} 7... O-O {[%clk 0:02:58.2]} 8. O-O {[%clk 0:02:58.8]}
8... e5 {[%clk 0:02:58.6]} 9. cxd5 {[%clk 0:02:56.5]} 9... cxd5 {[%clk
0:02:59.2]} 10. e4 {[%clk 0:02:57]} 10... exd4 {[%clk 0:02:57.3]} 11. Nxd5
{[%clk 0:02:53.8]} 11... Nxd5 {[%clk 0:02:57.4]} 12. exd5 {[%clk 0:02:54.2]}
12... Ne5 {[%clk 0:02:55.9]} 13. Bxh7+ {[%clk 0:02:48.8]} 13... Kh8 {[%clk
0:02:55.4]} 14. Nxe5 {[%clk 0:02:30.6]} 14... Bxe5 {[%clk 0:02:56.3]} 15. Be4
{[%clk 0:02:29.4]} 15... Qh4 {[%clk 0:02:48.8]} 16. g3 {[%clk 0:02:26.1]} 16...
Qh5 {[%clk 0:02:47.4]} 17. f4 {[%clk 0:02:01.1]} 17... Bf6 {[%clk 0:02:39.8]}
18. Bf3 {[%clk 0:01:50.4]} 18... Bg4 {[%clk 0:02:36.9]} 19. Qd1 {[%clk 0:01:46]}
19... Bxf3 {[%clk 0:02:33.4]} 20. Qxf3 {[%clk 0:01:46.9]} 20... Qxf3 {[%clk
0:02:32.7]} 21. Rxf3 {[%clk 0:01:47.8]} 21... Rac8 {[%clk 0:02:33.1]} 22. Rb3
{[%clk 0:01:31.2]} 22... b6 {[%clk 0:02:32.3]} 23. Bd2 {[%clk 0:01:27.5]} 23...
Rfd8 {[%clk 0:02:30.9]} 24. Rb5 {[%clk 0:01:22.2]} 24... Rc2 {[%clk 0:02:29.3]}
25. Rd1 {[%clk 0:01:20.4]} 25... Rc5 {[%clk 0:02:09]} 26. Rxc5 {[%clk
0:01:00.2]} 26... bxc5 {[%clk 0:02:09.9]} 27. b3 {[%clk 0:01:00.5]} 27... Rxd5
{[%clk 0:02:07]} 28. Kf2 {[%clk 0:00:57.8]} 28... Rd8 {[%clk 0:02:03]} 29. Re1
{[%clk 0:00:52.6]} 29... Rb8 {[%clk 0:01:58.5]} 30. Ke2 {[%clk 0:00:48.7]} 30...
c4 {[%clk 0:01:33.3]} 31. bxc4 {[%clk 0:00:48.2]} 31... Rb2 {[%clk 0:01:34.2]}
32. Kd3 {[%clk 0:00:41.1]} 32... Rxa2 {[%clk 0:01:33.4]} 33. Rc1 {[%clk
0:00:41.1]} 33... Ra3+ {[%clk 0:01:16.7]} 34. Ke4 {[%clk 0:00:40.6]} 34... Ra2
{[%clk 0:01:16.4]} 35. Be1 {[%clk 0:00:27.7]} 35... Rxh2 {[%clk 0:01:11.7]} 36.
c5 {[%clk 0:00:27.5]} 36... Re2+ {[%clk 0:01:11.4]} 37. Kd5 {[%clk 0:00:27.3]}
37... d3 {[%clk 0:01:10]} 38. c6 {[%clk 0:00:24.8]} 38... d2 {[%clk 0:01:10.1]}
39. Bxd2 {[%clk 0:00:21.6]} 39... Rxd2+ {[%clk 0:01:10.3]} 40. Kc5 {[%clk
0:00:15.7]} 40... Bd8 {[%clk 0:01:08.7]} 41. Kb5 {[%clk 0:00:14.1]} 41... Bc7
{[%clk 0:01:06.7]} 42. Ka6 {[%clk 0:00:14.1]} 42... Rb2 {[%clk 0:01:06.2]} 43.
Kxa7 {[%clk 0:00:07.8]} 43... Rb6 {[%clk 0:01:06]} 44. Rc2 {[%clk 0:00:02.8]}
44... g6 {[%clk 0:01:04.3]} 45. Rc1 {[%clk 0:00:01.2]} 45... Kg7 {[%clk
0:01:03.5]} 46. Rc2 {[%clk 0:00:01.7]} 46... Kf6 {[%clk 0:01:02.4]} 47. Rc1
{[%clk 0:00:01]} 47... Kf5 {[%clk 0:01:02.4]} 0-1

[Event "*** Titled Tuesday Blitz"]
[Site "Chess.com"]
[Date "2021.02.02"]
[Round "9"]
[White "Blitzstream"]
[Black "Srisshhhtea"]
[Result "1-0"]
[WhiteElo "2765"]
[BlackElo "2480"]
[TimeControl "180+1"]
[EndTime "11:45:53 PST"]
[Termination "Blitzstream won on time"]

1. d4 {[%clk 0:03:00.9]} 1... d5 {[%clk 0:02:57.7]} 2. Bf4 {[%clk 0:03:00.8]}
2... e6 {[%clk 0:02:55.7]} 3. e3 {[%clk 0:03:00.8]} 3... Bd6 {[%clk 0:02:56.2]}
4. Bg3 {[%clk 0:03:00.7]} 4... Nf6 {[%clk 0:02:56.3]} 5. Nf3 {[%clk 0:03:00.7]}
5... Ne4 {[%clk 0:02:56.4]} 6. Bd3 {[%clk 0:03:00.4]} 6... O-O {[%clk
0:02:38.5]} 7. Nbd2 {[%clk 0:02:59.5]} 7... f5 {[%clk 0:02:37.7]} 8. Ne5 {[%clk
0:02:58.3]} 8... Nd7 {[%clk 0:02:30.2]} 9. f4 {[%clk 0:02:52.3]} 9... Ndf6
{[%clk 0:02:20.3]} 10. Nxe4 {[%clk 0:02:47.3]} 10... Nxe4 {[%clk 0:02:09.2]} 11.
Qh5 {[%clk 0:02:46.7]} 11... Bxe5 {[%clk 0:01:58.8]} 12. fxe5 {[%clk 0:02:42.9]}
12... Bd7 {[%clk 0:01:55.5]} 13. O-O {[%clk 0:02:32]} 13... Be8 {[%clk 0:01:54]}
14. Qe2 {[%clk 0:02:26.4]} 14... Nxg3 {[%clk 0:01:46.5]} 15. hxg3 {[%clk
0:02:26]} 15... Qg5 {[%clk 0:01:46.4]} 16. Qf2 {[%clk 0:02:24.8]} 16... Bh5
{[%clk 0:01:38.7]} 17. Qf4 {[%clk 0:02:23.1]} 17... Qe7 {[%clk 0:01:36.5]} 18.
Qh4 {[%clk 0:02:17.2]} 18... Qe8 {[%clk 0:01:19.1]} 19. Kf2 {[%clk 0:02:02.4]}
19... Bg4 {[%clk 0:01:16.5]} 20. Kg1 {[%clk 0:01:31]} 20... Rd8 {[%clk
0:01:05.7]} 21. c3 {[%clk 0:01:28.9]} 21... Rd7 {[%clk 0:00:26.2]} 22. Rf4
{[%clk 0:01:27.9]} 22... g6 {[%clk 0:00:20.6]} 23. Raf1 {[%clk 0:01:19.7]} 23...
Rff7 {[%clk 0:00:19.4]} 24. Qh6 {[%clk 0:01:04.4]} 24... Qf8 {[%clk 0:00:19.3]}
25. Qxf8+ {[%clk 0:00:59.1]} 25... Kxf8 {[%clk 0:00:19.8]} 26. R4f2 {[%clk
0:00:57.3]} 26... Kg7 {[%clk 0:00:19.8]} 27. Rc1 {[%clk 0:00:56.1]} 27... c6
{[%clk 0:00:17.5]} 28. b4 {[%clk 0:00:51.8]} 28... Rc7 {[%clk 0:00:17.8]} 29. c4
{[%clk 0:00:51.3]} 29... Rfe7 {[%clk 0:00:16.3]} 30. Rfc2 {[%clk 0:00:51.4]}
30... a6 {[%clk 0:00:11.9]} 31. a4 {[%clk 0:00:49.9]} 31... Kf7 {[%clk
0:00:11.8]} 32. cxd5 {[%clk 0:00:47.8]} 32... exd5 {[%clk 0:00:12.4]} 33. b5
{[%clk 0:00:48.5]} 33... axb5 {[%clk 0:00:11.7]} 34. axb5 {[%clk 0:00:48.7]}
34... Re6 {[%clk 0:00:12.2]} 35. Rc5 {[%clk 0:00:46.6]} 35... Ke7 {[%clk
0:00:06.1]} 36. Rxd5 {[%clk 0:00:45]} 36... Rd7 {[%clk 0:00:03.6]} 37. Rdc5
{[%clk 0:00:43.7]} 37... Rc7 {[%clk 0:00:02.7]} 38. Bc4 {[%clk 0:00:42.4]} 1-0